[Event "BL 2024-25"]
[Site "Austria"]
[Date "2024.10.13"]
[Round "5.34"]
[White "Stalmach, Richard"]
[Black "Kunin, Vitaly"]
[Result "1-0"]
[Annotator "TA"]
[ECO "A35"]
[WhiteElo "2433"]
[BlackElo "2528"]
[PlyCount "84"]
[EventDate "2024.08.28"]
[EventType "team-tourn"]
[EventCountry "AUT"]
[SourceTitle "playchess.com"]
[Source "ChessBase"]
[SourceQuality "1"]
[WhiteTeam "Mistelbach"]
[BlackTeam "Feffernitz"]
[TimeControl "40/5400+30:1800+30"]

{[%evp 9,84,39,36,34,38,36,40,43,38,28,34,39,36,35,45,40,58,52,62,50,66,70,73,70,86,87,150,150,202,76,104,88,293,268,283,296,290,264,616,504,1198,1229,1235,1228,1379,1103,1506,1488,1421,1374,1630,1628,1631,1622,1608,1588,1347,1297,1182,1004,919,939,1298,1099,1262,1030,1254,1345,1352,1354,1210,1226,29990,29991,29994,29995,29995]} 1. Nf3 {[%emt 0:00:04]} c5 {[%emt 0:02:44]} 2. c4 {[%emt 0:00:11]} Nc6 {[%emt 0:00:14][%cal Bb8c6,Bc6e5,Be5f3][%mdl 32]} 3. Nc3 {[%emt 0:00:11]} g6 {[%emt 0:01:04]} 4. e3 {[%emt 0:00:08]} d6 {[%emt 0:08:42]} 5. d4 {[%emt 0:00:34]} Bg4 {[%emt 0:01:49]} 6. d5 {[%emt 0:04:27]} Ne5 {[%emt 0:01:44]} 7. Be2 {[%emt 0:00:17]} Nxf3+ {[%emt 0:00:38]} 8. Bxf3 {[%emt 0:05:31] White is slightly better.} Bxf3 {[%emt 0:00:27]} 9. Qxf3 {[%emt 0:00:05]} Bg7 {[%emt 0:00:42]} 10. e4 {[%emt 0:00:34]} Nf6 {[%emt 0:01:10]} 11. O-O {[%emt 0:00:35]} O-O {[%emt 0:00:19]} 12. Bg5 {[%emt 0:10:36]} h6 {[%emt 0:02:48]} 13. Bd2 {[%emt 0:00:58]} a6 {[%emt 0:00:40]} 14. Qd3 {[%emt 0:00:28] White is more active.} Qd7 {[%emt 0:16:19][%cal Ob7b5]} 15. a4 {[%emt 0:06:51]} e5 {[%emt 0:02:42]} 16. dxe6 {[%emt 0:01:03]} Qxe6 {[%emt 0:00:32]} 17. Rae1 {[%emt 0:01:23]} Ng4 {[%emt 0:06:32]} (17... Rad8 $142) 18. Nd5 $16 {[%emt 0:02:58]} Rab8 {[%emt 0:06:37] [#]} (18... Be5 $16 {is a better defense.}) 19. b3 {[%emt 0:05:27]} (19. f4 $1 $18 {Threatens to win with Bc3.} b5 (19... Bd4+ $2 20. Kh1 $18) 20. axb5 (20. cxb5 axb5 21. axb5 Nf6 $18) 20... axb5 21. cxb5) 19... Ne5 {[%emt 0:02:35]} 20. Qg3 {[%emt 0:17:37] Black must now prevent f4.} g5 {[%emt 0:07:43] This move loses the game for Black.} (20... Nc6 $16 {keeps fighting.}) 21. f4 $18 {[%emt 0:07:43]} gxf4 {[%emt 0:00:10]} 22. Rxf4 {[%emt 0:00:19]} ({Resist} 22. Bxf4 $6 Kh7 23. Kh1 Qg6 $16) 22... Kh7 {[%emt 0:02:59]} 23. Rf5 {[%emt 0:02:49]} Rh8 $2 {[%emt 0:04:14]} (23... b5 24. Nf4 Qd7) 24. Ref1 {[%emt 0:01:42] [#] Hoping for Nf6+.} Kg8 {[%emt 0:02:40]} (24... Qg6 $142 25. Qh3 b5) 25. Nf4 {[%emt 0:05:28]} Qe7 {[%emt 0:01:04]} 26. Nh5 {[%emt 0:00:35][%csl Gh5][%cal Rg3g7]} Ng6 {[%emt 0:00:47]} 27. Nxg7 {[%emt 0:00:36]} Kxg7 {[%emt 0:01:28]} 28. Bc3+ {[%emt 0:00:45]} Kg8 {[%emt 0:00:08]} 29. Rxf7 {[%emt 0:00:27] Black is weak on the dark squares} Qxf7 {[%emt 0:00:18]} 30. Rxf7 {[%emt 0:00:04]} Kxf7 {[%emt 0:00:09]} 31. Qxd6 {[%emt 0:00:08]} Rhg8 {[%emt 0:00:25]} 32. Qd5+ {[%emt 0:09:45]} Ke7 {[%emt 0:00:57]} 33. Qxc5+ {[%emt 0:00:18]} Ke8 {[%emt 0:00:24][%cal Be7e8,Be8f7,Bf7g6,Bg6f5,Bf5e4,Be4d4,Bd4c5][%mdl 32]} 34. Bf6 {[%emt 0:01:43]} Kf7 {[%emt 0:00:33]} 35. e5 {[%emt 0:01:57]} Nf4 {[%emt 0:00:49] Against Qd5+} 36. Qe7+ {[%emt 0:00:35]} Kg6 {[%emt 0:00:07]} 37. g3 {[%emt 0:01:01]} Kf5 {[%emt 0:02:21]} 38. Qd7+ {[%emt 0:01:45]} Ke4 {[%emt 0:01:23]} 39. Kf2 {[%emt 0:03:46]} Nd3+ {[%emt 0:02:02]} 40. Ke2 {[%emt 0:01:34]} Nb4 {[%emt 0:00:28]} 41. Qh7+ {[%emt 0:30:54]} Kd4 {[%emt 0:30:15]} 42. e6+ {[%emt 0:00:05]} Kc5 {[%emt 0:00:11] Weighted Error Value: White=0.20 (precise) /Black=0.53.  Loses game:     	---       	Black=1      Mistake:       	White=1     	Black=4      Inaccurate:     	---       	Black=1      OK:         	White=8     	Black=7      Best:        	White=2     	---} 1-0

[Event "BL 2024-25"]
[Site "Austria"]
[Date "2024.10.13"]
[Round "5.35"]
[White "Pajeken, Jakob Leon"]
[Black "Haba, Petr"]
[Result "1/2-1/2"]
[Annotator "TA"]
[ECO "D27"]
[WhiteElo "2423"]
[BlackElo "2422"]
[PlyCount "76"]
[EventDate "2024.08.28"]
[EventType "team-tourn"]
[EventCountry "AUT"]
[SourceTitle "playchess.com"]
[Source "ChessBase"]
[SourceQuality "1"]
[WhiteTeam "Feffernitz"]
[BlackTeam "Mistelbach"]
[TimeControl "40/5400+30:1800+30"]

{[%evp 26,76,7,0,-12,0,0,-24,-30,-34,-36,-21,-6,-13,-10,-8,-10,-38,-23,-44,-41,-63,-54,-85,-19,-47,-42,-41,0,-18,-35,-37,-34,-35,-23,-42,-43,-29,-45,-32,-6,-9,0,0,0,0,0,0,0,0,0,0,0]} 1. d4 {[%emt 0:00:16]} Nf6 {[%emt 0:00:33]} 2. Nf3 {[%emt 0:00:45]} d5 {[%emt 0:00:23]} 3. c4 {[%emt 0:00:14]} e6 {[%emt 0:00:26]} 4. Nc3 {[%emt 0:00:29]} dxc4 {[%emt 0:00:58]} 5. e3 {[%emt 0:00:18]} a6 {[%emt 0:00:53]} 6. a4 {[%emt 0:00:21]} c5 {[%emt 0:00:25]} 7. Bxc4 {[%emt 0:00:17]} Nc6 {[%emt 0:00:31]} 8. O-O {[%emt 0:00:17]} Be7 {[%emt 0:00:23]} 9. Qe2 {[%emt 0:00:31]} O-O {[%emt 0:00:39]} 10. Rd1 {[%emt 0:00:49]} Qc7 {[%emt 0:00:08]} 11. dxc5 {[%emt 0:02:52]} Bxc5 {[%emt 0:01:32]} 12. b3 {[%emt 0:00:54]} b6 {[%emt 0:02:47]} 13. Bb2 {[%emt 0:02:07]} Bb7 {[%emt 0:00:14]} 14. Rac1 {[%emt 0:00:55]} Rfd8 {[%emt 0:05:34]} 15. Rxd8+ {[%emt 0:06:09]} Qxd8 {[%emt 0:00:36]} 16. h3 {[%emt 0:01:50]} Na5 {[%emt 0:08:02] Black has an edge.} 17. Nd2 {[%emt 0:04:47][%cal Bf3d2,Bd2c4,Bc4e5][%mdl 32]} Nxc4 {[%emt 0:15:28]} 18. Nxc4 {[%emt 0:00:32]} Qe7 {[%emt 0:01:07]} 19. Rd1 {[%emt 0:11:26]} Rd8 {[%emt 0:01:13]} (19... Qc7 {looks sharper.} 20. Qd3 Be7 21. Qd4 Rd8) 20. Rxd8+ {[%emt 0:05:27]} Qxd8 {[%emt 0:00:32]} 21. Ne5 {[%emt 0:09:02]} h6 {[%emt 0:06:00]} 22. Nd3 {[%emt 0:04:54]} (22. Qd3 {feels hotter.} Nd5 23. Ne4 Be7 24. Qd4) 22... Be7 {[%emt 0:04:03] A strong pair of Bishops.} 23. e4 {[%emt 0:05:22]} Nd7 {[%emt 0:04:53]} 24. Nb1 {[%emt 0:05:58]} Bf6 {[%emt 0:06:54]} (24... Qc7 $17 25. Kh1 b5 26. axb5 axb5) 25. Nd2 {[%emt 0:03:34]} Bxb2 {[%emt 0:13:20]} 26. Nxb2 {[%emt 0:00:08]} Nc5 {[%emt 0:00:04] Wards off Qd3} 27. b4 {[%emt 0:02:20]} Qd4 {[%emt 0:05:47]} 28. bxc5 {[%emt 0:01:27]} Qxb2 {[%emt 0:00:05]} 29. cxb6 {[%emt 0:01:48]} Qxb6 $15 {[%emt 0:00:08][%mdl 4096] Endgame. KQB-KQN} 30. Qc4 {[%emt 0:01:35] Wards off Qd4} Qb2 {[%emt 0:02:32]} 31. Nf1 {[%emt 0:03:55]} a5 {[%emt 0:03:51]} 32. Ng3 {[%emt 0:05:52]} Qb1+ {[%emt 0:05:13]} 33. Kh2 {[%emt 0:00:22] The position is equal.} Qb4 {[%emt 0:01:52]} 34. Qc7 {[%emt 0:00:34]} g6 {[%emt 0:00:43]} 35. Qb8+ {[%emt 0:00:53]} Kg7 {[%emt 0:03:33][%cal Ob7c6]} 36. Qe5+ {[%emt 0:00:24]} Kg8 {[%emt 0:00:05][%cal Ob7c6]} 37. Qb8+ {[%emt 0:00:09]} Kg7 {[%emt 0:00:04][%cal Ob7c6]} 38. Qe5+ {[%emt 0:00:05]} Kg8 {[%emt 0:02:39] Weighted Error Value: White=0.07 (flawless) /Black=0.10 (very precise) .  Mistake:       	---       	Black=1      Inaccurate:     	White=3     	Black=2      OK:         	White=11    	Black=12     Best:        	White=1     	---} 1/2-1/2

[Event "BL 2024-25"]
[Site "Austria"]
[Date "2024.10.13"]
[Round "5.36"]
[White "Bures, Jaroslav"]
[Black "Brunello, Sabino"]
[Result "1/2-1/2"]
[Annotator "TA"]
[ECO "D26"]
[WhiteElo "2407"]
[BlackElo "2514"]
[PlyCount "61"]
[EventDate "2024.08.28"]
[EventType "team-tourn"]
[EventCountry "AUT"]
[SourceTitle "playchess.com"]
[Source "ChessBase"]
[SourceQuality "1"]
[WhiteTeam "Mistelbach"]
[BlackTeam "Feffernitz"]
[TimeControl "40/5400+30:1800+30"]

{[%evp 14,61,0,-20,-8,0,0,0,0,0,0,0,0,0,0,0,0,0,14,0,0,3,4,0,0,0,0,0,0,0,0,0,0,-4,0,0,0,0,0,0,0,0,0,0,0,0,0,-8,-8,-8]} 1. d4 {[%emt 0:00:03]} d5 {[%emt 0:01:02]} 2. c4 {[%emt 0:00:58]} dxc4 {[%emt 0:01:38]} 3. Nf3 {[%emt 0:08:56]} Nf6 {[%emt 0:00:24]} 4. Nc3 {[%emt 0:06:08]} a6 {[%emt 0:08:47]} 5. e3 {[%emt 0:01:38]} e6 {[%emt 0:02:54]} 6. Bxc4 {[%emt 0:05:01]} b5 {[%emt 0:00:12]} 7. Be2 {[%emt 0:01:33]} Bb7 {[%emt 0:03:23]} 8. O-O {[%emt 0:02:40] The position is equal.} Nbd7 {[%emt 0:04:19]} 9. b3 {[%emt 0:18:32]} c5 {[%emt 0:09:32]} 10. Bb2 {[%emt 0:00:02]} Be7 {[%emt 0:00:21]} 11. dxc5 {[%emt 0:04:39]} Nxc5 {[%emt 0:00:59]} 12. b4 {[%emt 0:02:42]} Ncd7 {[%emt 0:02:59][%cal Oe8g8]} 13. a4 {[%emt 0:04:00]} bxa4 {[%emt 0:02:01]} 14. Qxa4 {[%emt 0:04:06]} O-O {[%emt 0:00:12]} 15. Rfd1 {[%emt 0:04:40]} Qe8 {[%emt 0:20:58]} 16. h3 {[%emt 0:03:16]} Nb6 {[%emt 0:03:43]} 17. Qxe8 {[%emt 0:04:01]} Rfxe8 {[%emt 0:01:03]} 18. Na4 {[%emt 0:03:06]} Nxa4 {[%emt 0:03:40]} 19. Rxa4 {[%emt 0:00:02]} Nd5 {[%emt 0:01:39]} 20. b5 {[%emt 0:01:42]} axb5 {[%emt 0:04:08]} 21. Bxb5 {[%emt 0:00:36]} Rxa4 {[%emt 0:00:10]} 22. Bxa4 {[%emt 0:00:19]} Ra8 {[%emt 0:00:24]} 23. Ra1 {[%emt 0:01:06]} Bf6 {[%emt 0:02:35]} 24. Rb1 {[%emt 0:10:21]} Rxa4 {[%emt 0:01:33]} 25. Bxf6 {[%emt 0:00:08]} Rb4 {[%emt 0:00:06]} 26. Rxb4 {[%emt 0:00:34]} Nxb4 {[%emt 0:00:02]} 27. Bc3 {[%emt 0:01:44]} Bxf3 {[%emt 0:00:05]} 28. Bxb4 {[%emt 0:00:07]} Bc6 {[%emt 0:00:04]} 29. f4 {[%emt 0:00:53]} h5 {[%emt 0:00:10]} 30. h4 {[%emt 0:00:06]} f6 {[%emt 0:00:05]} 31. g3 {[%emt 0:00:48] An interesting draw.   Weighted Error Value: White=0.02 (flawless) /Black=0.01 (flawless) .  OK:         	White=11    	Black=13     Best:        	White=1     	---} 1/2-1/2